bitfinex/quotes_ETHUSD_20250703
["timestamp","ask_amount","ask_price","bid_price","bid_amount"]
[1751553517339,4.42995477,2604.5,2604.0,4.03219431]
[1751553517515,0.59041793,2604.5,2604.1,3.84007476]
[1751553518133,30.0,2604.3,2603.8,3.86044548]
[1751553518335,0.1912,2604.3,2603.8,4.05244548]
[1751553518518,10.1912,2604.3,2603.8,4.05244548]
[1751553518720,14.03107996,2604.3,2603.8,4.05244548]
[1751553519116,3.83943021,2604.6,2604.1,3.84008476]
[1751553519318,0.1912,2604.5,2604.1,3.84008476]
[1751553519515,0.1912,2604.5,2604.0,0.192]
[1751553519516,30.0,2604.4,2604.0,0.192]
[1751553520726,30.0,2604.4,2604.1,3.84008572]
[1751553520926,0.1912,2604.5,2604.0,4.03216064]
[1751553521130,3.83973434,2604.4,2604.0,0.192]
[1751553521327,33.84005007,2604.2,2603.8,0.02]
[1751553521644,40.0,2604.2,2603.9,0.192]
[1751553521939,30.0,2604.2,2603.9,0.192]
[1751553522339,0.1912,2604.3,2604.0,3.84015277]
[1751553522537,0.7978,2604.8,2604.0,3.84015277]
[1751553522538,0.7978,2604.8,2604.1,3.83995668]
[1751553522747,0.1912,2604.5,2604.0,0.192]
[1751553523345,3.83967189,2604.4,2604.0,4.03217987]
[1751553523731,3.83967189,2604.4,2604.0,0.192]
[1751553523732,3.83965596,2604.4,2604.0,0.192]
[1751553524047,0.4030856,2604.4,2604.0,0.192]
[1751553524350,4.03108067,2604.3,2603.9,0.192]
[1751553524837,0.1912,2604.3,2603.9,4.0323708]
[1751553525042,0.1912,2604.3,2603.9,4.03238065]
[1751553525245,4.03102328,2604.3,2603.9,4.03238065]
[1751553525468,30.0,2603.9,2603.8,0.02]
[1751553525613,30.0,2604.0,2603.8,0.02]
[1751553526451,3.84039325,2603.9,2603.8,0.02]
[1751553526634,33.84039325,2603.9,2603.8,0.02]
[1751553526960,38.48308573,2603.9,2603.8,0.02]
[1751553527244,38.48308573,2603.9,2603.4,0.02]
[1751553527245,34.64448329,2603.5,2603.4,0.02]
[1751553527546,43.28848329,2603.5,2603.4,0.02]
[1751553527943,0.192,2603.6,2603.4,0.02]
[1751553529236,10.192,2603.6,2603.4,0.02]
[1751553529434,0.192,2603.6,2603.4,0.02]
[1751553529843,0.192,2603.6,2603.4,3.86110591]
[1751553530050,0.192,2603.6,2603.4,0.02]
[1751553530223,30.0,2603.5,2603.4,0.02]
[1751553530431,30.798,2603.5,2603.4,0.02]
[1751553531254,34.63898329,2603.5,2603.4,0.02]
[1751553533534,4.63898329,2603.5,2603.4,0.02]
[1751553533729,34.63898329,2603.5,2603.4,0.02]
[1751553533915,38.48787577,2603.5,2603.4,0.02]
[1751553537244,47.12087577,2603.5,2603.4,0.02]
[1751553537427,0.192,2603.6,2603.4,0.02]
[1751553537629,30.0,2603.8,2603.4,0.02]
[1751553537857,40.0,2603.6,2603.4,0.02]
[1751553538159,30.0,2603.6,2603.4,0.02]
[1751553538756,33.84098329,2603.5,2603.4,0.02]
[1751553538958,37.68987577,2603.5,2603.4,0.02]
[1751553539274,46.32087577,2603.5,2603.4,0.02]
[1751553540579,16.32087577,2603.5,2603.4,0.02]
[1751553540774,12.47198329,2603.5,2603.4,0.02]
[1751553541382,8.7638,2603.9,2603.4,0.02]
[1751553541682,0.192,2603.7,2603.5,3.84089813]
[1751553541883,0.192,2603.7,2603.4,0.02]
[1751553542068,30.0,2603.6,2603.4,0.02]
[1751553542856,0.192,2603.7,2603.5,3.84097363]
[1751553543056,0.192,2603.7,2603.4,3.86105162]
[1751553543480,0.192,2603.7,2603.5,3.84097774]
[1751553543670,0.192,2603.7,2603.4,3.86105136]
[1751553543852,0.192,2603.7,2603.4,0.02]
[1751553544074,3.84098329,2603.5,2603.4,0.02]
[1751553544262,0.7644,2603.6,2603.4,0.02]
[1751553544465,3.84098329,2603.5,2603.4,0.02]
[1751553545562,1.87293683,2603.6,2603.4,0.02]
[1751553546271,5.71384692,2603.6,2603.4,0.02]
[1751553546763,5.71387911,2603.6,2603.4,0.02]
[1751553546962,12.65573725,2603.7,2603.4,0.02]
[1751553546963,0.192,2603.7,2603.4,0.02]
[1751553547181,8.811,2603.7,2603.4,0.02]
[1751553547378,6.13768747,2603.8,2603.4,0.02]
[1751553547379,10.916,2603.8,2603.4,0.02]
[1751553547584,2.489,2603.8,2603.4,0.02]
[1751553547787,11.107,2603.8,2603.4,0.02]
[1751553548185,13.0167,2603.8,2603.4,0.02]
[1751553549015,13.0167,2603.8,2603.4,3.86110959]
[1751553549173,11.107,2603.8,2603.5,3.84093534]
[1751553549368,0.192,2603.8,2603.6,3.84073376]
[1751553549583,1.19150233,2604.2,2603.7,3.84068679]
[1751553549584,30.0,2604.0,2603.7,3.84068679]
[1751553549786,30.0,2604.0,2603.8,3.84049173]
[1751553550093,0.192,2604.1,2603.8,3.8404593]
[1751553550473,22.45373172,2604.4,2603.9,3.84031616]
[1751553550694,22.45373172,2604.4,2603.8,4.03240126]
[1751553550695,30.0,2604.2,2603.8,4.03240126]
[1751553550899,30.0,2604.2,2603.9,3.84039066]
[1751553551064,30.0,2604.2,2603.8,4.03251597]
[1751553551391,0.1912,2604.3,2604.0,3.84018123]
[1751553551582,0.1912,2604.3,2603.8,4.0324683]
[1751553551892,0.1912,2604.3,2603.9,3.8403638]
[1751553552292,0.1912,2604.3,2603.8,4.03251834]
[1751553552692,0.1912,2604.3,2603.9,3.84039159]
[1751553552902,0.1912,2604.3,2603.9,3.84031358]
[1751553553599,0.1912,2604.3,2604.1,3.83996958]
[1751553553776,0.1912,2604.3,2603.8,0.192]
[1751553553970,0.1912,2604.3,2604.0,3.84023082]
[1751553554170,0.1912,2604.3,2604.0,3.8401707]
[1751553554801,0.1912,2604.3,2603.9,3.84031852]
[1751553555096,0.1912,2604.3,2603.9,3.84030843]
[1751553555694,0.1912,2604.3,2603.8,0.192]
[1751553555897,30.1912,2604.5,2604.1,3.83999705]
[1751553556078,30.0,2604.4,2604.1,3.83999705]
[1751553556602,30.0,2604.4,2604.0,4.0322002]
[1751553556771,30.0,2604.4,2604.1,3.84008035]
[1751553557102,17.4112,2604.6,2604.2,3.83983117]
[1751553557297,15.08984722,2604.6,2604.2,3.83983117]
[1751553557692,15.08984722,2604.6,2604.1,0.622]
[1751553558005,0.1912,2604.6,2604.5,3.83950854]
[1751553558179,0.01,2604.8,2604.7,3.83921372]
[1751553558513,0.01,2604.8,2604.7,4.03041372]
[1751553559022,0.01,2604.8,2604.7,4.46121372]
[1751553559604,0.01,2604.8,2604.7,0.1912]
[1751553560174,0.01,2604.8,2604.5,3.83938713]
[1751553560387,0.01,2604.8,2604.6,4.03053543]
[1751553560848,0.01,2604.8,2604.6,0.1912]
[1751553561123,30.0,2604.6,2603.8,3.84043071]
[1751553561327,30.0,2604.6,2603.8,0.192]
[1751553561485,0.1912,2604.2,2603.8,4.03247662]
[1751553562112,0.1912,2604.2,2603.9,3.84038125]
[1751553562281,0.1912,2604.2,2603.8,4.032465]
[1751553563206,30.0,2604.1,2603.8,0.192]
[1751553563513,0.192,2604.0,2603.6,3.84076718]
[1751553563715,0.8031,2604.7,2603.9,4.2710931]
[1751553563903,30.0,2604.6,2604.0,3.84011574]
[1751553564214,33.83942953,2604.6,2604.0,4.39015004]
[1751553564396,30.0,2604.6,2604.0,4.39015004]
[1751553564599,40.0,2604.5,2604.1,3.8400732]
[1751553564806,30.0,2604.5,2604.1,3.8400732]
[1751553564988,30.0,2604.5,2604.2,3.839942]
[1751553565316,30.0,2604.6,2604.4,3.83959689]
[1751553565631,0.01,2604.8,2604.2,0.55]
[1751553565788,0.01,2604.8,2604.4,3.83957939]
[1751553565986,0.01,2604.8,2604.5,3.83949858]
[1751553566401,0.01,2604.8,2604.4,3.83953197]
[1751553566989,0.01,2604.8,2604.6,3.83925097]
[1751553567191,0.01,2604.8,2604.5,3.83942805]
[1751553567420,0.01,2604.8,2604.7,3.83921372]
[1751553568713,0.01,2604.8,2604.6,3.83929015]
[1751553569919,0.01,2604.8,2604.7,3.83921372]
[1751553571122,0.01,2604.8,2604.6,3.83930293]
[1751553571320,0.01,2604.8,2604.7,3.83921372]
[1751553571495,0.01,2604.8,2604.7,5.20016101]
[1751553572296,0.01,2604.8,2604.5,0.4308]
[1751553572497,0.01,2604.8,2604.5,0.55]
[1751553572705,0.01,2604.8,2604.5,4.38942004]
[1751553572920,0.01,2604.8,2604.4,4.38959456]
[1751553573122,0.01,2604.8,2604.2,3.83994529]
[1751553573320,0.01,2604.8,2604.5,3.83942537]
[1751553573891,0.01,2604.8,2604.4,0.1912]
[1751553573892,0.01,2604.8,2604.4,4.03077835]
[1751553574098,13.84907618,2604.8,2604.4,0.1912]
[1751553574297,0.7589,2604.7,2604.4,0.1912]
[1751553574493,4.5981186,2604.7,2604.4,0.1912]
[1751553574701,0.7589,2604.7,2604.4,4.03084121]
[1751553575342,0.01,2604.8,2604.2,3.83990931]
[1751553575343,0.01,2604.8,2604.6,3.83921747]
[1751553575511,0.01,2604.8,2604.7,3.83921372]
[1751553577228,0.01,2604.8,2604.7,5.17619111]
[1751553577540,0.01,2604.8,2604.7,5.36739111]
[1751553577723,0.01,2604.8,2604.7,4.58041372]
[1751553580611,0.01,2604.8,2604.7,4.61880585]
[1751553581710,0.01,2604.8,2604.7,4.58041372]
[1751553582121,0.01,2604.8,2604.7,4.61880585]
[1751553583346,1e-08,2604.9,2604.8,14.81986633]
[1751553585014,1e-08,2604.9,2604.8,23.37786633]
[1751553589462,1e-08,2605.0,2604.9,14.81971896]
[1751553589950,1e-08,2605.0,2604.9,15.01091896]
[1751553591718,1e-08,2605.0,2604.9,14.46091896]
[1751553591922,1e-08,2605.0,2604.9,23.00491896]
[1751553592122,1e-08,2605.0,2604.9,14.03011896]
[1751553592366,1e-08,2605.0,2604.9,22.57411896]
[1751553592669,1e-08,2605.0,2604.9,0.1912]
[1751553592871,10.82390001,2605.0,2603.9,0.4308]
[1751553593040,3.83917578,2604.8,2604.6,0.1912]
[1751553593237,3.83902488,2604.9,2604.1,3.84001093]
[1751553593238,3.83923297,2604.7,2604.4,0.1912]
[1751553593541,3.83923297,2604.7,2604.2,0.1912]
[1751553593542,3.83965596,2604.4,2604.2,0.1912]
[1751553593743,3.84017025,2604.1,2604.0,0.192]
[1751553593926,18.99159354,2604.9,2603.8,0.212]
[1751553593927,0.807,2604.3,2603.8,0.212]
[1751553594120,30.0,2604.1,2603.8,0.212]
[1751553595131,13.84002809,2604.2,2603.8,0.212]
[1751553595474,4.83807128,2604.3,2603.8,0.212]
[1751553595831,4.83807128,2604.3,2603.8,4.05254067]
[1751553596430,0.9982,2604.3,2603.9,3.84031288]
[1751553596629,4.8380136,2604.3,2603.8,4.05245525]
[1751553597889,0.9982,2604.3,2603.9,3.8403857]
[1751553598056,4.83801267,2604.3,2603.8,4.0524684]
[1751553598457,6.87212538,2604.6,2604.0,3.84013082]
[1751553598777,3.83959665,2604.5,2603.9,3.84025909]
[1751553598981,3.83966886,2604.4,2604.1,0.192]
[1751553599280,0.9729,2604.6,2604.1,0.192]
[1751553599494,3.84039325,2603.9,2603.8,0.02]
[1751553599677,31.16573933,2603.9,2603.8,0.02]
[1751553599847,35.00613258,2603.9,2603.8,0.02]
[1751553600552,31.16573933,2603.9,2603.8,0.02]
[1751553600753,0.7817,2603.9,2603.8,3.86054074]
[1751553600943,34.03115486,2604.2,2603.8,0.212]
[1751553601142,0.1912,2604.2,2603.8,4.05247314]
[1751553601346,0.8029,2604.6,2604.0,0.55]
[1751553601546,0.8029,2604.6,2604.2,0.55]
[1751553601794,0.8029,2604.6,2604.2,0.1912]
[1751553601963,0.1912,2604.8,2604.5,3.83936202]
[1751553602163,0.8029,2604.9,2604.6,3.83926961]
[1751553602392,0.8029,2604.9,2604.7,3.83918869]
[1751553602547,0.8029,2604.9,2604.8,3.83906633]
[1751553602751,2.25200001,2605.0,2604.7,0.1912]
[1751553602955,2.96072805,2605.0,2604.1,0.02]
[1751553603292,0.816,2604.5,2604.1,0.02]
[1751553603595,0.8293,2603.7,2602.7,3.06292165]
[1751553603879,34.67190682,2602.4,2602.3,0.02]
[1751553604183,34.67190682,2602.4,2600.4,3.82365207]
[1751553604184,30.0,2601.6,2600.4,3.82365207]
[1751553604480,30.822,2601.3,2600.4,0.02]
[1751553604695,40.0,2600.7,2600.4,0.02]
[1751553604910,0.822,2600.8,2600.4,0.02]
[1751553604911,40.0,2600.5,2600.4,0.02]
[1751553605066,3.84541434,2600.5,2600.4,0.02]
[1751553605377,30.0,2600.5,2600.4,0.02]
[1751553605794,0.822,2600.8,2600.4,3.86553361]
[1751553605946,0.7576,2601.3,2600.5,0.38655336]
[1751553606145,0.7576,2601.3,2600.6,0.03845266]
[1751553606448,30.0,2601.0,2600.4,0.02]
[1751553606661,4.66731434,2600.5,2600.4,0.02]
[1751553606862,4.66731434,2600.5,2598.4,3.84851172]
[1751553606863,30.0,2600.5,2598.7,0.4308]
[1751553607067,3.84778588,2598.9,2598.4,0.28488639]
[1751553607379,0.8273,2598.9,2598.5,3.84837406]
[1751553607682,10.0,2599.7,2599.1,3.84737696]
[1751553607683,0.7592,2599.3,2599.1,3.84737696]
[1751553607878,0.7592,2599.3,2598.6,0.03848225]
[1751553607879,30.0,2599.2,2598.6,0.03848225]
[1751553608083,30.0,2598.9,2597.6,0.4508]
[1751553608387,30.0,2598.9,2596.9,0.19308914]
[1751553608388,30.0,2598.7,2598.0,3.8490091]
[1751553608684,0.7872,2598.9,2597.5,0.03849855]
[1751553608877,2.253,2599.0,2597.7,0.4508]
[1751553609102,2.203,2599.0,2598.9,3.84778175]
[1751553609280,2.203,2599.0,2598.5,0.55]
[1751553609455,2.203,2599.0,2598.8,3.84787974]
[1751553609779,2.203,2599.0,2598.2,3.84874416]
[1751553609780,2.203,2599.0,2597.7,0.4508]
[1751553609981,30.0,2598.9,2598.6,3.84820748]
[1751553610278,0.8257,2599.3,2599.2,3.84733764]
[1751553610453,2.254,2599.7,2599.4,3.8469188]
[1751553610650,30.0,2599.7,2599.6,3.84674565]
[1751553610854,0.7754,2599.8,2599.5,3.84688944]
[1751553611059,0.7754,2599.8,2599.3,3.84718962]
[1751553611247,0.7754,2599.8,2599.7,3.84659768]
[1751553611858,2.254,2599.9,2599.3,0.03847189]
[1751553612058,2.254,2599.9,2599.4,3.84691812]
[1751553612258,2.254,2599.9,2599.6,3.84663651]
[1751553612782,0.7767,2600.3,2599.6,0.76935389]
[1751553612992,30.0,2600.2,2599.7,3.88500551]
[1751553613202,0.7767,2600.3,2599.4,0.55]
[1751553613368,0.7767,2600.3,2600.0,3.84612554]
[1751553613562,0.7767,2600.3,2599.8,3.8463909]
[1751553613563,0.9687,2600.3,2600.2,3.84585801]
[1751553613793,9.238,2600.5,2600.4,3.84556222]
[1751553613996,9.43,2600.5,2600.0,0.192]
[1751553614198,9.43,2600.5,2600.1,3.8459345]
[1751553614393,9.43,2600.5,2600.2,3.84583359]
[1751553614700,3.045,2600.7,2600.4,3.84556222]
[1751553615001,3.045,2600.7,2600.5,3.84540835]
[1751553615002,0.983,2600.7,2600.5,3.84540835]
[1751553615209,0.983,2600.7,2600.6,3.84526647]
[1751553615701,0.983,2600.7,2600.4,3.84545702]
[1751553615702,0.983,2600.7,2600.4,3.84550144]
[1751553616693,0.983,2600.7,2600.2,0.192]
[1751553616898,12.0813,2600.7,2600.2,4.03774703]
[1751553617066,0.983,2600.7,2600.5,3.84527014]
[1751553617270,0.983,2600.7,2600.6,3.84526647]
[1751553617493,0.791,2600.7,2600.6,3.84526647]
[1751553617877,0.791,2600.7,2600.4,4.03751315]
[1751553618074,0.791,2600.7,2600.5,3.84541434]
[1751553618996,0.791,2600.7,2600.6,3.84526647]
[1751553619199,0.192,2600.9,2600.5,0.55]
[1751553619386,0.8318,2601.1,2600.6,0.23045266]
[1751553619573,0.8318,2601.1,2600.6,0.192]
[1751553619771,0.8318,2601.1,2600.7,3.84506631]
[1751553620002,0.8318,2601.1,2600.9,3.84472039]
[1751553620301,0.8318,2601.1,2601.0,3.84467512]
[1751553620803,0.8318,2601.1,2600.8,3.84491505]
[1751553621304,0.8318,2601.1,2599.7,3.84645773]
[1751553621305,30.0,2601.0,2600.4,3.84553733]
[1751553621604,0.192,2601.0,2600.7,3.84502073]
[1751553622168,30.0,2600.9,2599.9,0.4508]
[1751553622400,12.31860466,2601.1,2600.3,0.192]
[1751553622401,0.192,2600.8,2600.3,0.192]
[1751553622572,1.0238,2601.1,2601.0,3.84467512]
[1751553622771,1.0238,2601.1,2600.6,0.192]
[1751553622772,0.9559,2601.5,2601.3,3.84414249]
[1751553622985,0.9559,2601.5,2601.1,0.192]
[1751553623188,0.9559,2601.5,2601.1,4.03645199]
[1751553623502,30.0,2601.4,2600.6,8.52]
[1751553623704,0.192,2601.3,2600.9,3.84477904]
[1751553624071,10.192,2601.3,2600.9,3.84477904]
[1751553624274,0.192,2601.3,2600.9,3.84477904]
[1751553624493,0.192,2601.3,2600.8,4.03688261]
[1751553624494,30.0,2601.2,2600.8,0.192]
[1751553624802,0.192,2601.0,2600.7,3.845041]
[1751553624971,0.192,2601.0,2600.5,4.03735798]
[1751553625174,0.192,2601.0,2600.9,3.84482294]
[1751553625373,0.192,2601.2,2600.9,3.84482294]
[1751553625703,0.192,2601.2,2600.8,4.0369082]
[1751553625905,0.192,2601.2,2600.9,3.84481564]
[1751553626089,0.192,2601.2,2601.0,3.84460922]
[1751553626278,0.192,2601.2,2600.9,3.84474912]
[1751553627092,0.02,2601.3,2601.2,3.84437951]
[1751553627497,0.02,2601.3,2601.2,5.80607019]
[1751553627806,0.02,2601.3,2601.2,5.84451398]
[1751553629008,0.192,2602.1,2601.2,5.29442616]
[1751553629208,0.192,2602.1,2601.3,0.58844231]
[1751553629505,10.192,2602.1,2601.8,3.84349296]
[1751553629710,11.89927591,2602.1,2601.8,3.84349296]
[1751553629899,11.89927591,2602.1,2601.7,3.84356443]
[1751553630418,11.89927591,2602.1,2601.1,3.844525]
[1751553630419,30.0,2602.0,2600.8,0.4508]
[1751553630621,1.70727591,2602.1,2601.2,0.192]
[1751553630622,30.0,2601.6,2601.2,0.192]
[1751553630931,0.192,2601.2,2600.7,4.03705577]
[1751553631224,3.84432967,2601.3,2600.7,3.84505577]
[1751553631225,0.192,2601.0,2600.7,3.84505577]
[1751553631586,0.192,2601.0,2600.6,0.192]
[1751553631979,0.192,2601.0,2600.7,3.84511744]
[1751553632179,0.192,2601.0,2600.6,0.192]
[1751553632377,0.192,2601.0,2600.8,3.84486154]
[1751553632620,0.803,2601.5,2601.0,3.84455028]
[1751553632879,0.192,2601.3,2600.9,0.192]
[1751553633085,0.803,2601.5,2601.2,3.84437951]
[1751553633300,0.803,2601.5,2601.4,3.84408395]
[1751553633736,30.0,2601.1,2600.0,0.4508]
[1751553633889,30.0,2600.9,2600.5,3.84534654]
[1751553634223,0.7928,2601.0,2600.8,3.84485475]
[1751553634426,0.7928,2601.0,2600.5,3.84530807]
[1751553634585,0.7928,2601.0,2600.7,3.84502294]
[1751553634890,0.7928,2601.0,2600.5,3.84541434]
[1751553635091,30.0,2600.8,2600.0,0.4508]
[1751553635301,1.68268338,2601.0,2600.6,3.84514007]
[1751553635302,0.7928,2601.0,2600.6,3.84514007]
[1751553635489,0.7928,2601.0,2600.4,3.84550146]
[1751553635490,3.14697831,2601.0,2600.4,3.84550146]
[1751553635690,6.99167204,2601.0,2600.5,3.84541434]
[1751553636088,3.84483489,2600.9,2600.5,3.84541434]
[1751553636290,3.14697831,2601.0,2600.6,3.84522427]
[1751553636619,1.68323945,2601.0,2600.2,0.55]
[1751553636913,0.89043945,2601.2,2600.6,0.55]
[1751553637113,0.89043945,2601.2,2600.8,3.84490599]
[1751553637114,0.89043945,2601.1,2600.8,3.84490599]
[1751553637314,0.89043945,2601.1,2600.7,3.84505418]
[1751553637514,0.89043945,2601.0,2600.7,3.84505418]
[1751553637715,0.89043945,2601.1,2600.3,4.39570254]
[1751553638019,33.8450016,2600.8,2600.3,13.84563704]
[1751553638218,30.0,2600.7,2600.3,13.84563704]
[1751553638585,7.69389408,2600.8,2600.3,13.84563704]
[1751553638787,3.84514365,2600.7,2600.2,3.84573606]
[1751553639107,3.84514365,2600.7,2600.1,4.3959113]
[1751553639108,3.84527797,2600.6,2600.1,4.3959113]
[1751553639620,0.8913517,2600.5,2600.1,0.55]
[1751553639793,0.8913517,2600.5,2600.1,3.84598813]
[1751553640115,0.8913517,2600.5,2600.2,3.84585762]
[1751553640315,0.8913517,2600.6,2600.2,3.84585762]
[1751553640616,0.89259099,2600.5,2599.6,0.01]
[1751553640817,30.0,2600.3,2599.8,0.55]
[1751553641115,30.0,2600.3,2599.7,3.84659768]
[1751553641116,0.89259099,2600.2,2600.0,3.84608029]
[1751553641419,0.7982,2600.7,2600.0,3.84608029]
[1751553641420,0.89259099,2600.4,2600.2,3.84578962]
[1751553641629,4.64332741,2600.7,2600.0,0.55]
[1751553641630,0.89259099,2600.3,2600.0,0.55]
[1751553641783,0.8930808,2600.2,2600.1,4.39600134]
[1751553642112,0.8930808,2600.2,2600.1,0.55]
[1751553642315,0.8930808,2600.2,2599.6,3.85664469]
[1751553642517,0.8930808,2600.1,2599.8,3.84638107]
[1751553642715,3.84560808,2600.4,2599.8,3.84638107]
[1751553642716,0.8930808,2600.0,2599.8,3.84638107]
[1751553642921,3.84560808,2600.4,2599.8,3.84638107]
[1751553643124,0.8936589,2600.3,2600.0,3.84607573]
[1751553643323,0.8936589,2600.2,2600.0,3.84607573]
[1751553643523,0.89398609,2600.1,2600.0,4.39615384]
[1751553643822,0.7982,2600.7,2600.1,4.03800203]
[1751553643823,4.93133626,2600.6,2600.1,4.03800203]
[1751553644027,0.89401963,2600.5,2600.3,3.84564048]
[1751553644199,0.89401963,2600.4,2600.3,3.84564048]
[1751553644795,0.783,2601.3,2600.5,4.39539282]
[1751553645019,0.89420299,2601.2,2600.7,4.39507286]
[1751553645219,0.89420299,2601.1,2601.0,4.03666708]
[1751553645418,0.89420299,2601.1,2601.0,4.58666708]
[1751553645610,0.89420299,2601.2,2601.1,4.39452731]
[1751553646112,0.89420299,2601.2,2601.1,4.62497258]
[1751553646313,0.02,2601.3,2601.2,4.39437951]
[1751553646930,0.02,2601.3,2601.2,24.18627019]
[1751553647095,0.8946813,2602.2,2602.1,3.84304984]
[1751553647296,0.8946813,2602.3,2601.8,0.55]
[1751553647496,0.8946813,2602.3,2602.0,0.192]
[1751553647726,0.8946813,2602.3,2602.1,3.84302972]
[1751553648227,0.02,2602.4,2602.0,0.192]
[1751553648410,3.86263266,2602.4,2602.0,0.192]
[1751553648615,30.0,2602.3,2602.0,0.192]
[1751553648917,0.8937821,2602.2,2601.9,0.192]
[1751553649101,3.8429247,2602.2,2601.9,0.192]
[1751553649498,3.8429247,2602.2,2601.5,3.84379734]
[1751553649499,3.84329194,2602.0,2601.5,3.84379734]
[1751553649803,0.8007,2602.0,2601.6,3.8437124]
[1751553650009,0.8007,2602.0,2601.5,4.07429684]
[1751553650333,30.0,2601.9,2601.5,0.192]
[1751553650539,13.84362443,2601.8,2601.5,0.192]
[1751553650739,3.84366713,2601.7,2601.2,0.55]
[1751553650945,3.84366713,2601.7,2601.4,0.192]
[1751553651255,3.84386276,2601.6,2601.4,0.192]
[1751553651613,4.60123619,2601.5,2601.1,0.01]
[1751553651812,4.60125525,2601.5,2601.1,0.202]
[1751553652137,3.84416409,2601.4,2601.1,0.202]
[1751553652315,0.7573,2601.5,2601.1,0.202]
[1751553652514,3.84437951,2601.2,2601.1,0.01]
[1751553652922,0.192,2601.4,2601.1,0.01]
[1751553653120,4.03610076,2601.4,2601.1,0.01]
[1751553653732,0.47934008,2601.3,2601.1,0.01]
[1751553653935,3.84437951,2601.2,2601.1,0.01]
[1751553654541,4.62907951,2601.2,2601.1,0.01]
[1751553654751,34.62907951,2601.2,2601.1,0.01]
[1751553655309,4.62907951,2601.2,2601.1,0.01]
[1751553656326,14.62907951,2601.2,2601.1,0.01]
[1751553656834,0.7847,2601.2,2601.1,0.01]
[1751553657240,4.62907951,2601.2,2601.1,0.01]
[1751553657546,0.7847,2601.2,2601.1,0.01]
[1751553658044,0.192,2601.3,2601.1,0.01]
[1751553658417,0.8024,2601.5,2601.2,3.84426505]
[1751553658616,0.8024,2601.5,2601.2,4.03626505]
[1751553659442,0.8024,2601.5,2601.2,4.03632909]
[1751553659821,10.192,2601.6,2601.2,4.03633866]
[1751553659822,0.192,2601.6,2601.2,4.03633866]
[1751553660032,0.8018,2601.8,2601.2,0.95463387]
[1751553660335,0.8018,2601.8,2601.4,0.192]
[1751553660516,30.0,2601.7,2601.4,0.192]
[1751553661145,0.8018,2601.8,2601.5,3.84393501]
[1751553662118,0.8018,2601.8,2601.6,3.84377799]
[1751553662339,0.8018,2601.8,2601.5,3.843865]
[1751553662848,0.8018,2601.8,2601.4,4.03601351]
[1751553663238,2.7766245,2601.8,2601.4,0.192]
[1751553663450,30.0,2601.3,2601.1,0.01]
[1751553663625,34.64667951,2601.2,2601.1,0.01]
[1751553663817,0.8023,2601.2,2601.1,0.01]
[1751553664164,0.8023,2601.5,2601.2,3.84437458]
[1751553664355,10.9943,2601.5,2601.1,3.85445018]
[1751553664651,10.9943,2601.5,2601.2,3.84436137]
[1751553664815,0.9943,2601.5,2601.1,3.85444853]
[1751553665018,0.9943,2601.5,2601.1,3.85448888]
[1751553665244,10.0,2601.7,2601.3,3.84410889]
[1751553665455,3.84437951,2601.2,2601.1,0.01]
[1751553665651,0.9943,2601.2,2601.1,0.01]
[1751553665854,10.9943,2601.2,2601.1,0.01]
[1751553666026,0.9943,2601.2,2601.1,0.01]
[1751553666227,4.83867951,2601.2,2601.1,0.01]
[1751553666428,5.70697321,2601.2,2601.1,0.01]
[1751553666627,35.70697321,2601.2,2601.1,0.01]
[1751553667349,5.70697321,2601.2,2601.1,0.01]
[1751553667521,35.70697321,2601.2,2601.1,0.01]
[1751553668564,5.70697321,2601.2,2601.1,0.01]
[1751553668747,35.70697321,2601.2,2601.1,0.01]
[1751553669639,0.9943,2601.2,2601.1,0.01]
[1751553669839,2.222,2601.5,2601.1,0.01]
[1751553670022,2.222,2601.5,2601.1,4.04645471]
[1751553670221,10.192,2601.6,2601.2,3.8443006]
[1751553670424,14.03580395,2601.6,2601.2,3.8443006]
[1751553670725,14.03580395,2601.6,2601.1,4.04645535]
[1751553670928,4.03580395,2601.6,2601.1,4.04645535]
[1751553671126,14.03580395,2601.6,2601.1,4.04645535]
[1751553671327,3.84401326,2601.5,2601.1,0.202]
[1751553671522,0.192,2601.6,2601.1,0.202]
[1751553671748,3.84401144,2601.5,2601.1,0.202]
[1751553672222,14.03587173,2601.6,2601.1,4.04652166]
[1751553672430,3.84396916,2601.5,2601.1,0.202]
[1751553672856,4.03585205,2601.6,2601.1,4.04651632]
[1751553673054,3.84394015,2601.5,2601.1,0.202]
[1751553673428,3.84437951,2601.2,2601.1,0.01]
[1751553673740,34.83627951,2601.2,2601.1,0.01]
[1751553673936,4.83627951,2601.2,2601.1,0.01]
[1751553674868,30.0,2601.5,2601.1,0.01]
[1751553675159,0.02,2601.8,2601.7,3.84364069]
[1751553675458,0.02,2601.8,2601.7,4.03564069]
[1751553675850,0.02,2601.8,2601.7,5.45709739]
[1751553676554,1e-08,2601.8,2601.7,25.25358888]
[1751553676765,1e-08,2601.8,2601.7,25.66595248]
[1751553677443,1e-08,2601.8,2601.7,15.86946099]
[1751553678865,1e-08,2601.8,2601.7,5.03644069]
[1751553679232,1e-08,2601.8,2601.7,5.07487709]
[1751553680477,1e-08,2601.8,2601.7,5.03644069]
[1751553680647,1e-08,2601.8,2601.7,4.03564069]
[1751553681051,1e-08,2601.8,2601.7,0.192]
[1751553681243,1e-08,2601.8,2601.6,3.8437875]
[1751553681477,1e-08,2601.8,2601.7,4.45845584]
[1751553681639,1e-08,2601.8,2601.7,5.00845584]
[1751553682166,1e-08,2601.8,2601.7,4.97001944]